bitfinex-derivatives/quotes_BTCF0:USTF0_20251125
["timestamp","ask_amount","ask_price","bid_price","bid_amount"]
[1764044876517,0.03317,88085.0,88084.0,0.01102]
[1764044876717,0.05493,88085.0,88084.0,0.01102]
[1764044876919,0.00028382,88086.0,88085.0,0.01102]
[1764044877121,0.06724,88094.0,88093.0,0.01102]
[1764044877321,0.09,88094.0,88093.0,0.01102]
[1764044877530,0.0642,88100.0,88099.0,0.01102]
[1764044877721,0.10965803,88100.0,88099.0,0.01102]
[1764044877920,0.10965803,88100.0,88085.0,0.0407134]
[1764044878117,0.04326,88095.0,88094.0,0.01102]
[1764044878427,0.30545803,88095.0,88094.0,0.01102]
[1764044879325,0.00219803,88095.0,88094.0,0.01102]
[1764044880225,0.00017034,88102.0,88101.0,0.01102]
[1764044880622,0.00017034,88102.0,88101.0,0.73262]
[1764044881721,0.05613,88116.0,88115.0,0.0223727]
[1764044881920,0.05832803,88116.0,88115.0,0.3831727]
[1764044882930,0.05832803,88116.0,88115.0,0.37182]
[1764044883128,0.49932803,88116.0,88115.0,0.37182]
[1764044884424,0.03756803,88116.0,88115.0,0.37182]
[1764044884829,0.05932803,88116.0,88115.0,0.37182]
[1764044885135,0.05832803,88116.0,88115.0,0.37182]
[1764044885932,0.05932803,88116.0,88115.0,0.37182]
[1764044886727,0.04343024,88124.0,88123.0,0.03676]
[1764044887036,0.04416291,88124.0,88123.0,0.41110973]
[1764044891730,0.02240291,88124.0,88123.0,0.41110973]
[1764044892038,0.04467291,88124.0,88123.0,0.41110973]
[1764044892533,0.04467291,88124.0,88123.0,0.41661973]
[1764044892534,0.00017024,88124.0,88123.0,0.41661973]
[1764044893531,0.22296749,88133.0,88125.0,0.03676]
[1764044893731,0.02256369,88126.0,88125.0,0.03895803]
[1764044895038,0.04556636,88126.0,88125.0,0.03895803]
[1764044897845,0.42556636,88126.0,88125.0,0.03895803]
[1764044898044,0.18556636,88126.0,88125.0,0.03895803]
[1764044899037,0.04556636,88126.0,88125.0,0.03895803]
[1764044900841,0.47556636,88126.0,88125.0,0.00219803]
[1764044904740,0.47556636,88126.0,88125.0,0.03421125]
[1764044905942,0.47556636,88126.0,88125.0,0.03201322]
[1764044906149,0.47556636,88126.0,88125.0,3.22e-06]
[1764044908255,0.47556636,88126.0,88125.0,0.03023856]
[1764044908643,0.47556636,88126.0,88116.0,0.0113525]
[1764044908644,0.0559022,88119.0,88118.0,0.04054306]
[1764044908947,0.0394936,88108.0,88107.0,0.36097024]
[1764044909152,0.49022627,88108.0,88107.0,0.36097024]
[1764044909350,0.49022627,88108.0,88107.0,0.00017024]
[1764044910146,0.49022627,88108.0,88107.0,0.02167024]
[1764044910352,0.49022627,88108.0,88107.0,0.04444024]
[1764044910542,0.49022627,88108.0,88107.0,0.02167024]
[1764044911250,0.49122627,88108.0,88107.0,0.04444024]
[1764044911552,0.49122627,88108.0,88107.0,0.04544024]
[1764044911851,0.22122627,88108.0,88107.0,0.04763827]
[1764044912244,0.22222627,88108.0,88107.0,0.04663827]
[1764044913952,0.46222627,88108.0,88107.0,0.04663827]
[1764044914345,0.16222627,88108.0,88107.0,0.04663827]
[1764044914549,0.15087267,88108.0,88107.0,0.04663827]
[1764044915044,0.12273267,88108.0,88107.0,0.04663827]
[1764044915245,0.15087267,88108.0,88107.0,0.04663827]
[1764044917056,0.12273267,88108.0,88107.0,0.04663827]
[1764044917456,0.40273267,88108.0,88107.0,0.05799197]
[1764044917758,0.00017024,88116.0,88115.0,0.0556227]
[1764044917962,0.00090291,88116.0,88115.0,0.05782073]
[1764044918261,0.00090291,88116.0,88115.0,0.41862073]
[1764044918650,0.01497291,88116.0,88115.0,0.41862073]
[1764044918851,0.00090291,88116.0,88115.0,0.41862073]
[1764044919957,0.00090291,88116.0,88115.0,0.47912188]
[1764044920758,0.00090291,88116.0,88115.0,0.51068468]
[1764044921543,0.00017024,88116.0,88115.0,0.51068468]
[1764044922357,0.00017024,88116.0,88115.0,0.49933198]
[1764044924057,0.01424024,88116.0,88115.0,0.49934009]
[1764044924260,0.00017024,88116.0,88115.0,0.49934009]
[1764044925358,0.00017024,88116.0,88115.0,0.43883894]
[1764044925557,0.33878852,88125.0,88124.0,0.0564215]
[1764044925757,0.19993267,88125.0,88124.0,0.09019044]
[1764044926056,0.21400267,88125.0,88124.0,0.09019044]
[1764044926252,0.42807267,88125.0,88124.0,0.07883894]
[1764044926650,0.42907267,88125.0,88124.0,0.07883894]
[1764044928170,0.44042407,88125.0,88124.0,0.07883894]
[1764044929457,0.43942407,88125.0,88124.0,0.05635894]
[1764044929659,0.43942407,88125.0,88124.0,0.03157091]
[1764044930260,0.02814,88111.0,88110.0,0.40587]
[1764044930465,0.02887267,88111.0,88110.0,0.40806803]
[1764044930656,0.43887267,88111.0,88110.0,0.40806803]
[1764044932758,0.02814,88108.0,88107.0,0.00017024]
[1764044933061,0.47033803,88108.0,88107.0,0.00017024]
[1764044933360,0.64949803,88108.0,88107.0,0.00017024]
[1764044934266,0.65049803,88108.0,88107.0,0.00017024]
[1764044935256,0.65049803,88108.0,88107.0,0.04524024]
[1764044935458,0.65149803,88108.0,88107.0,0.04524024]
[1764044936152,1.01229803,88108.0,88107.0,0.04524024]
[1764044936765,1.01229803,88108.0,88107.0,0.02276024]
[1764044937067,1.01229803,88108.0,88107.0,0.05772024]
[1764044937654,1.01229803,88108.0,88107.0,0.02276024]
[1764044940059,1.01229803,88108.0,88107.0,0.05772024]
[1764044940259,0.64229803,88108.0,88107.0,0.05772024]
[1764044940963,0.65365163,88108.0,88107.0,0.05772024]
[1764044941163,1.01365163,88108.0,88107.0,0.05772024]
[1764044941666,1.00229803,88108.0,88107.0,0.05772024]
[1764044943069,0.96229803,88108.0,88107.0,0.00017024]
[1764044947067,0.96229803,88108.0,88107.0,0.03421024]
[1764044948362,0.96229803,88108.0,88107.0,0.06917024]
[1764044949574,0.96229803,88108.0,88107.0,0.03421024]
[1764044950572,0.96229803,88108.0,88107.0,0.00017024]
[1764044951474,0.96229803,88108.0,88107.0,0.06840024]
[1764044954076,0.73229803,88108.0,88107.0,0.06840024]
[1764044955778,0.74365163,88108.0,88107.0,0.06840024]
[1764044955978,0.96365163,88108.0,88107.0,0.06840024]
[1764044956172,0.67365163,88108.0,88107.0,0.06840024]
[1764044957576,0.67365163,88108.0,88107.0,0.00017024]
[1764044957778,0.06926,88096.0,88095.0,0.04041315]
[1764044957978,0.0806153,88095.0,88094.0,0.04041315]
[1764044958279,0.0113562,88088.0,88087.0,0.12967887]
[1764044958476,0.22281423,88088.0,88087.0,0.06914]
[1764044961779,0.07145803,88088.0,88087.0,0.06914]
[1764044961986,0.03652803,88088.0,88087.0,0.06914]
[1764044962777,0.07145803,88088.0,88087.0,0.06914]
[1764044963886,0.48145803,88088.0,88087.0,0.06914]
[1764044966774,0.84225803,88088.0,88087.0,0.06914]
[1764044968178,1.02141803,88088.0,88087.0,0.06914]
[1764044969682,0.75141803,88088.0,88087.0,0.06914]
[1764044970085,0.98141803,88088.0,88087.0,0.06914]
[1764044972181,0.66141803,88088.0,88087.0,0.0804963]
[1764044974284,0.25061803,88088.0,88087.0,0.0804963]
[1764044978887,0.36097024,88096.0,88087.0,0.08269433]
[1764044979090,0.44017024,88096.0,88095.0,0.0986653]
[1764044979290,0.00017024,88096.0,88095.0,0.10086333]
[1764044979496,0.06943024,88096.0,88095.0,0.10086333]
[1764044980189,0.50016291,88096.0,88095.0,0.03814803]
[1764044980385,0.50016291,88096.0,88095.0,0.00319803]
[1764044980989,0.50016291,88096.0,88095.0,0.03814803]
[1764044981294,0.50016291,88096.0,88095.0,0.08276333]
[1764044982394,0.50016291,88096.0,88095.0,0.08176333]
[1764044983299,0.50016291,88096.0,88095.0,0.1222584]
[1764044983491,0.50016291,88096.0,88095.0,0.08176333]
[1764044983988,0.50016291,88096.0,88095.0,0.03495]
[1764044984195,0.0747653,88095.0,88094.0,0.04049507]
[1764044984396,0.87870797,88095.0,88094.0,0.04049507]
[1764044984597,0.86629797,88095.0,88094.0,0.0738731]
[1764044985190,0.86629797,88095.0,88094.0,0.03337803]
[1764044986693,0.86629797,88095.0,88094.0,0.06663803]
[1764044986894,0.85494267,88095.0,88094.0,0.06663803]
[1764044988989,0.42494267,88095.0,88094.0,0.06663803]
[1764044989192,0.63494267,88095.0,88094.0,0.06663803]
[1764044989497,0.62494267,88095.0,88094.0,0.06663803]
[1764044991297,0.36153267,88095.0,88094.0,0.10717274]
[1764044991489,0.00073267,88095.0,88094.0,0.06663803]
[1764044993404,0.03364267,88095.0,88094.0,0.06663803]
[1764044994302,0.06414267,88095.0,88094.0,0.06663803]
[1764044999504,0.46414267,88095.0,88094.0,0.06663803]
[1764045000296,0.46414267,88095.0,88094.0,0.00219803]
[1764045000497,0.46414267,88095.0,88088.0,0.3608]
[1764045000498,0.05701,88088.0,88086.0,0.0607256]
[1764045000706,0.36153267,88087.0,88086.0,0.02774]
[1764045000896,0.23690267,88087.0,88086.0,0.13578363]
[1764045001098,0.23690267,88087.0,88084.0,0.06080082]
[1764045001099,0.0113564,88086.0,88084.0,0.06080082]
[1764045001296,0.05701,88083.0,88082.0,0.06080082]
[1764045001502,0.068367,88082.0,88080.0,0.06080082]
[1764045001700,0.05774267,88081.0,88080.0,0.06299885]
[1764045001893,0.48774267,88081.0,88080.0,0.00219803]
[1764045002097,0.48674267,88081.0,88080.0,0.00219803]
[1764045002506,0.48674267,88081.0,88080.0,0.05762803]
[1764045002704,0.21674267,88081.0,88080.0,0.07505803]
[1764045002893,0.21674267,88081.0,88080.0,0.13585885]
[1764045003297,0.21674267,88081.0,88080.0,0.07505803]
[1764045003504,0.22809977,88081.0,88080.0,0.05762803]
[1764045004006,0.47809977,88081.0,88080.0,0.05762803]
[1764045004605,0.46674267,88081.0,88080.0,0.07505803]
[1764045004793,0.00073267,88081.0,88080.0,0.13585885]
[1764045005000,0.00073267,88081.0,88080.0,0.07505803]
[1764045006302,0.38902,88087.0,88086.0,0.07286]
[1764045006606,0.41781,88087.0,88086.0,0.07505803]
[1764045006807,0.38975267,88087.0,88086.0,0.07505803]
[1764045007200,0.02895267,88087.0,88086.0,0.07505803]
[1764045007596,0.02895267,88087.0,88086.0,0.08641443]
[1764045008107,0.05774267,88087.0,88086.0,0.08641443]
[1764045009808,0.02895267,88087.0,88086.0,0.08641443]
[1764045010006,0.17916,88089.0,88088.0,0.05543]
[1764045010309,0.17916,88089.0,88088.0,0.05762803]
[1764045011108,0.20738,88089.0,88088.0,0.05762803]
[1764045011702,0.3608,88095.0,88094.0,0.0654754]
[1764045011906,0.3608,88106.0,88095.0,0.05412]
[1764045012104,0.0113541,88105.0,88095.0,0.05631803]
[1764045012505,0.0113541,88105.0,88095.0,0.11707428]
[1764045012705,0.0113541,88105.0,88095.0,0.05631803]
[1764045013310,0.0113541,88105.0,88095.0,0.11704182]
[1764045013914,0.0113541,88105.0,88095.0,0.05631803]
[1764045016212,0.3608,88106.0,88095.0,0.05631803]
[1764045016608,0.0113547,88100.0,88095.0,0.13295337]
[1764045016810,0.0113543,88103.0,88095.0,0.13295337]
[1764045017511,0.0113546,88101.0,88095.0,0.13295337]
[1764045017709,0.49582291,88096.0,88095.0,0.00219803]
[1764045018715,0.22582291,88096.0,88095.0,0.00219803]
[1764045019114,0.22582291,88096.0,88095.0,0.02932803]
[1764045020109,0.46582291,88096.0,88095.0,0.02932803]
[1764045020305,0.46582291,88096.0,88095.0,0.00219803]
[1764045022621,0.0662753,88095.0,88093.0,0.04048059]
[1764045022921,0.23481267,88094.0,88093.0,0.04048059]
[1764045023123,0.62481267,88094.0,88093.0,0.04048059]
[1764045023805,0.62481267,88094.0,88093.0,0.09679862]
[1764045025115,0.62481267,88094.0,88093.0,0.10815412]
[1764045025310,0.62481267,88094.0,88093.0,0.06767353]
[1764045025512,0.41481267,88094.0,88093.0,0.06767353]
[1764045025708,0.05565267,88094.0,88093.0,0.10815412]
[1764045026114,0.00073267,88094.0,88093.0,0.06767353]
[1764045026314,0.00017024,88096.0,88095.0,0.05412]
[1764045026613,0.00017024,88096.0,88095.0,0.05631803]
[1764045028116,0.00090291,88096.0,88095.0,0.05631803]
[1764045028828,0.00090291,88096.0,88095.0,0.11703337]
[1764045029428,0.02849291,88096.0,88095.0,0.05631803]
[1764045029721,0.05582291,88096.0,88095.0,0.05631803]
[1764045030622,0.05582291,88096.0,88095.0,0.11703337]
[1764045031421,0.05582291,88096.0,88095.0,0.05631803]
[1764045031724,0.05582291,88096.0,88095.0,0.06767333]
[1764045033617,0.00017024,88096.0,88095.0,0.12838867]
[1764045033824,0.00017024,88096.0,88095.0,0.06767333]
[1764045034324,0.00017024,88096.0,88095.0,0.42847333]
[1764045034620,0.3608,88107.0,88106.0,0.0654739]
[1764045034815,0.3608,88107.0,88106.0,0.06767193]
[1764045035014,0.38839,88107.0,88106.0,0.06767193]
[1764045035216,0.41645267,88107.0,88106.0,0.06767193]
[1764045035722,0.41645267,88107.0,88106.0,0.05631803]
[1764045036820,0.77645267,88107.0,88106.0,0.02932803]
[1764045037019,0.77645267,88107.0,88106.0,0.00219803]
[1764045038323,0.77745267,88107.0,88106.0,0.00219803]
[1764045038622,0.77845267,88107.0,88106.0,0.00219803]
[1764045039018,0.77745267,88107.0,88106.0,0.02932803]
[1764045039221,0.77845267,88107.0,88106.0,0.02932803]
[1764045039423,0.36353267,88107.0,88106.0,0.06767193]
[1764045039625,0.002,88107.0,88106.0,0.12836686]
[1764045039824,0.002,88107.0,88106.0,0.06767193]
[1764045040029,0.00017024,88115.0,88114.0,0.0654728]
[1764045040216,0.00017024,88115.0,88114.0,0.42847083]
[1764045041619,0.05389291,88115.0,88114.0,0.46889902]
[1764045042322,0.05389291,88115.0,88114.0,0.42847083]
[1764045043122,0.00090291,88115.0,88114.0,0.46889902]
[1764045043317,0.00090291,88115.0,88114.0,0.42847083]
[1764045043517,0.00090291,88115.0,88114.0,0.46888167]
[1764045043717,0.00017024,88115.0,88114.0,0.46888167]
[1764045045317,0.00017024,88115.0,88114.0,0.42847083]
[1764045047728,0.3608,88135.0,88134.0,0.0635103]
[1764045048031,0.3608,88135.0,88134.0,0.06570833]
[1764045048230,0.41410267,88135.0,88134.0,0.05435803]
[1764045049925,0.83410267,88135.0,88134.0,0.02818803]
[1764045050128,0.83410267,88135.0,88134.0,0.00219803]
[1764045050529,0.56410267,88135.0,88134.0,0.00219803]
[1764045050721,0.56410267,88135.0,88134.0,0.02818803]
[1764045051636,0.56410267,88135.0,88134.0,0.05435803]
[1764045052428,0.80410267,88135.0,88134.0,0.00219803]
[1764045053428,0.80410267,88135.0,88134.0,0.02818803]
[1764045053832,0.80410267,88135.0,88134.0,0.00219803]
[1764045055833,0.80410267,88135.0,88134.0,0.02818803]
[1764045056132,0.80410267,88135.0,88134.0,0.05435803]
[1764045056330,0.80410267,88135.0,88134.0,0.02818803]
[1764045056734,0.80410267,88135.0,88134.0,0.00219803]
[1764045058525,0.80410267,88135.0,88134.0,0.04902803]
[1764045059130,0.80410267,88135.0,88134.0,0.00219803]
[1764045059443,0.80410267,88135.0,88134.0,0.04902803]
[1764045059839,0.80410267,88135.0,88134.0,0.00219803]
[1764045060636,0.80410267,88135.0,88134.0,0.06273803]
[1764045060842,0.36153267,88135.0,88134.0,0.06273803]
[1764045061134,0.38315267,88135.0,88134.0,0.06273803]
[1764045061338,0.40531267,88135.0,88134.0,0.06273803]
[1764045061539,0.38315267,88135.0,88134.0,0.06273803]
[1764045062739,0.40531267,88135.0,88134.0,0.06273803]
[1764045063941,0.38315267,88135.0,88134.0,0.06273803]
[1764045064341,0.40531267,88135.0,88134.0,0.09301099]
[1764045064948,0.36153267,88135.0,88134.0,0.09302185]
[1764045065237,0.38315267,88135.0,88134.0,0.09302185]
[1764045065536,0.36153267,88135.0,88134.0,0.09302185]
[1764045065740,0.40475024,88143.0,88142.0,0.0581792]
[1764045065933,0.40548291,88143.0,88142.0,0.06037723]
[1764045066939,0.40648291,88143.0,88142.0,0.06037723]
[1764045067141,0.40648291,88143.0,88142.0,0.09066002]
[1764045067335,0.40648291,88143.0,88142.0,0.06037723]
[1764045067536,0.3608,88161.0,88142.0,0.06037723]
[1764045067537,0.04562769,88213.0,88190.0,0.00999999]
[1764045067743,0.04562769,88213.0,88143.0,0.1138]
[1764045067744,0.04378,88241.0,88240.0,0.00999999]
[1764045067942,0.01348,88240.0,88234.0,0.0113374]
[1764045068143,0.44526,88240.0,88239.0,0.00219803]
[1764045068442,0.44526,88240.0,88239.0,0.0352642]
[1764045068443,0.04526,88240.0,88239.0,0.0352642]
[1764045069338,0.04526,88240.0,88239.0,0.7568642]
[1764045070146,0.04726,88240.0,88239.0,0.7568642]
[1764045070644,0.04926,88240.0,88239.0,0.7568642]
[1764045070835,0.00011245,88248.0,88245.0,0.04443]
[1764045071032,0.0450133,88246.0,88245.0,0.0910302]
[1764045071433,0.0234839,88246.0,88245.0,0.0910302]
[1764045072243,0.01348,88260.0,88245.0,0.0910302]
[1764045072244,0.05992,88287.0,88258.0,0.0113343]
[1764045072552,0.10194,88260.0,88259.0,0.0352642]
[1764045072847,0.10194,88260.0,88259.0,0.03705009]
[1764045073645,0.47194,88260.0,88259.0,0.03705009]
[1764045074149,0.10194,88260.0,88259.0,0.03705009]
[1764045074538,0.53194,88260.0,88259.0,0.03705009]
[1764045074748,0.10194,88260.0,88259.0,0.03705009]
[1764045077448,0.10194,88260.0,88259.0,0.05992009]
[1764045078345,0.10194,88270.0,88269.0,0.02287]
[1764045078654,0.10194,88270.0,88269.0,0.41876093]
[1764045078851,0.10194,88270.0,88269.0,0.37433093]
[1764045079243,0.10194,88270.0,88269.0,0.39720093]
[1764045079439,0.10194,88270.0,88269.0,0.41876093]
[1764045079746,0.10294,88270.0,88269.0,0.37433093]
[1764045080050,0.84821,88270.0,88266.0,0.20803]
[1764045080238,0.0113339,88262.0,88251.0,0.00016999]
[1764045080439,0.51985276,88261.0,88251.0,0.00236802]
[1764045080644,0.87985276,88261.0,88251.0,0.00236802]
[1764045081740,0.0113341,88260.0,88251.0,0.00236802]
[1764045081945,0.0113346,88256.0,88251.0,0.00236802]
[1764045082147,0.18084,88255.0,88251.0,0.00236802]
[1764045082348,0.57084,88255.0,88251.0,0.00236802]
[1764045082544,0.3608,88252.0,88251.0,0.00016999]
[1764045082857,0.0113357,88247.0,88240.0,0.05592999]
[1764045083154,0.0113362,88244.0,88240.0,0.05812802]
[1764045083348,0.3913362,88244.0,88240.0,0.05812802]
[1764045083652,0.3913362,88244.0,88240.0,0.04812803]
[1764045084346,0.3913362,88244.0,88240.0,0.04912803]
[1764045084553,0.3913362,88244.0,88240.0,0.05012803]
[1764045084744,0.38,88244.0,88241.0,0.0113365]
[1764045085053,0.38,88244.0,88241.0,0.01353453]
[1764045085250,0.15905276,88250.0,88241.0,0.01353453]
[1764045085251,0.15905276,88250.0,88245.0,0.0113359]
[1764045085455,0.49905276,88250.0,88249.0,0.00219803]
[1764045086049,0.38,88250.0,88249.0,0.00219803]
[1764045086648,0.14,88250.0,88249.0,0.00219803]
[1764045087341,0.00016999,88251.0,88250.0,0.0113353]
[1764045087546,0.00016999,88251.0,88250.0,0.01353333]
[1764045087756,0.00016999,88251.0,88250.0,0.00219803]
[1764045088845,0.01150519,88251.0,88250.0,0.00219803]
[1764045091351,0.01150519,88251.0,88250.0,0.03694882]
[1764045092455,0.43150519,88251.0,88250.0,0.03694882]
[1764045092845,0.17016999,88251.0,88250.0,0.03694882]
[1764045093246,0.43016999,88251.0,88250.0,0.03694882]
[1764045095952,0.38016999,88251.0,88250.0,0.03475079]
[1764045096949,0.38016999,88251.0,88250.0,0.03694882]
[1764045097658,0.38016999,88251.0,88250.0,0.03475079]
[1764045098550,0.38016999,88251.0,88250.0,0.0252401]
[1764045098854,0.38016999,88251.0,88240.0,0.04593]
[1764045098855,0.0113365,88241.0,88240.0,0.04593]
[1764045099053,0.6118165,88241.0,88240.0,0.04593]
[1764045100053,0.6118165,88241.0,88240.0,0.04793]
[1764045101757,0.2518165,88241.0,88240.0,0.07299803]
[1764045101953,0.5018165,88241.0,88240.0,0.17134803]
[1764045103659,0.01150519,88251.0,88250.0,0.19891]
[1764045103866,0.23060999,88251.0,88250.0,0.20110803]
[1764045105964,0.44060999,88251.0,88250.0,0.20110803]
[1764045106160,0.20060999,88251.0,88250.0,0.20110803]
[1764045106865,0.18060999,88251.0,88250.0,0.20110803]
[1764045109070,0.63060999,88251.0,88250.0,0.20110803]
[1764045109961,0.63060999,88251.0,88240.0,0.05592999]
[1764045110160,0.0113365,88241.0,88240.0,0.04593]
[1764045110466,0.4013365,88241.0,88240.0,0.14868803]
[1764045110769,0.4013365,88241.0,88240.0,0.28100168]
[1764045111870,0.4013365,88241.0,88240.0,0.28200168]
[1764045112069,0.0113374,88234.0,88230.0,0.00999999]
[1764045112365,0.0103398,88215.0,88214.0,0.2671]
[1764045112570,0.55293783,88215.0,88214.0,0.2671]
[1764045112864,0.25193783,88215.0,88214.0,0.26783267]
[1764045113066,0.18259803,88215.0,88214.0,0.26783267]
[1764045113570,0.00219803,88215.0,88214.0,0.26783267]
[1764045113871,0.18263803,88215.0,88214.0,0.26783267]
[1764045114556,0.19397783,88215.0,88214.0,0.26783267]
[1764045115170,0.18363803,88215.0,88214.0,0.26783267]
[1764045115869,0.18263803,88215.0,88214.0,0.26783267]
[1764045116672,0.18363803,88215.0,88214.0,0.26783267]
[1764045117560,0.00016999,88223.0,88222.0,0.2111489]
[1764045117767,0.00016999,88223.0,88222.0,0.21188157]
[1764045118273,0.01483999,88224.0,88223.0,0.19981]
[1764045118463,0.3608,88236.0,88235.0,0.19981]
[1764045118663,0.53527803,88236.0,88235.0,0.24076199]
[1764045120065,0.53627803,88236.0,88235.0,0.20054267]
[1764045121269,0.53727803,88236.0,88235.0,0.20054267]
[1764045122669,0.53727803,88236.0,88235.0,0.24075632]
[1764045123273,0.53727803,88236.0,88235.0,0.20054267]
[1764045124063,0.53727803,88236.0,88235.0,0.23352681]
[1764045124869,0.54861513,88236.0,88235.0,0.23352681]
[1764045125674,0.53727803,88236.0,88235.0,0.24486411]
[1764045126682,0.53727803,88236.0,88235.0,0.23352681]
[1764045127974,0.17647803,88236.0,88235.0,0.23352681]
[1764045129178,0.17428,88236.0,88235.0,0.23352681]
[1764045129682,0.17547803,88236.0,88235.0,0.23352681]
[1764045130985,0.17447803,88236.0,88235.0,0.23352681]
[1764045137799,0.00016999,88244.0,88243.0,0.20908]
[1764045138092,0.3608,88254.0,88253.0,0.224245]
[1764045138385,0.13616,88260.0,88258.0,0.2242443]
[1764045138589,0.08,88259.0,88258.0,0.25796111]
[1764045138793,0.15636,88260.0,88259.0,0.21291]
[1764045138991,0.19636,88260.0,88259.0,0.24662681]
[1764045139286,0.15636,88260.0,88259.0,0.24662681]
[1764045139888,0.3608,88275.0,88274.0,0.21291]
[1764045140085,0.60299803,88275.0,88274.0,0.24662681]
[1764045140481,0.60299803,88275.0,88274.0,0.03371681]
[1764045140880,0.60299803,88275.0,88274.0,0.24662681]
[1764045141786,0.60399803,88275.0,88274.0,0.24662681]
[1764045142187,0.60499803,88275.0,88274.0,0.24662681]
[1764045143285,0.00419803,88275.0,88274.0,0.24662681]
[1764045143787,0.45419803,88275.0,88274.0,0.24662681]
[1764045144382,0.45319803,88275.0,88274.0,0.24662681]
[1764045144578,0.45419803,88275.0,88274.0,0.24662681]
[1764045147889,0.15419803,88275.0,88274.0,0.24662681]
[1764045149088,0.152,88275.0,88274.0,0.24662681]
[1764045149392,0.00028304,88326.0,88274.0,0.24662681]
[1764045149393,0.22223244,88320.0,88285.0,0.21291]
[1764045149590,0.64541884,88320.0,88319.0,0.27447267]
[1764045149791,0.42538443,88320.0,88319.0,0.27447267]
[1764045149986,0.0131881,88306.0,88305.0,0.27374]
[1764045150199,0.39538613,88306.0,88305.0,0.30738726]
[1764045151788,0.38219803,88306.0,88305.0,0.30738726]
[1764045152186,0.00219803,88306.0,88305.0,0.30738726]
[1764045152387,0.3608,88312.0,88311.0,0.21291]
[1764045152594,0.37210916,88320.0,88319.0,0.21291]
[1764045152595,0.00286,88320.0,88319.0,0.21291]
[1764045152896,0.38505803,88320.0,88319.0,0.24655726]
[1764045153290,0.39560759,88320.0,88319.0,0.24655726]
[1764045153590,0.75540759,88320.0,88319.0,0.24655726]
[1764045154388,0.74485803,88320.0,88319.0,0.24655726]
[1764045154897,0.75637118,88320.0,88319.0,0.24655726]
[1764045155094,0.74276764,88320.0,88319.0,0.22756673]
[1764045155993,0.73225449,88320.0,88319.0,0.22756673]
[1764045157192,0.71865163,88320.0,88319.0,0.22756673]
[1764045158502,0.72997803,88320.0,88319.0,0.01392406]
[1764045158696,0.72997803,88320.0,88296.0,0.27374]
[1764045158697,0.0113293,88297.0,88296.0,0.27374]
[1764045158894,0.4313293,88297.0,88296.0,0.27593803]
[1764045159097,0.4313293,88297.0,88296.0,0.16648803]
[1764045160506,0.4323293,88297.0,88296.0,0.16648803]
[1764045163404,0.4323293,88297.0,88296.0,0.27593803]
[1764045164608,0.4323293,88297.0,88290.0,0.00999999]
[1764045164811,0.0113314,88281.0,88280.0,0.26804]
[1764045165009,0.4013314,88281.0,88280.0,0.30340663]
[1764045165211,0.38772375,88281.0,88280.0,0.30340663]
[1764045167104,0.37411583,88281.0,88280.0,0.30340663]
[1764045169910,0.36278443,88281.0,88280.0,0.30340663]
[1764045170110,0.3608,88285.0,88284.0,0.20721]
[1764045170315,0.59064,88285.0,88284.0,0.24257663]
[1764045170508,0.56342474,88285.0,88284.0,0.24257663]
[1764045170814,0.56342474,88285.0,88284.0,0.25580966]
[1764045171116,0.05,88285.0,88284.0,0.25580966]
[1764045171314,0.00016952,88289.0,88288.0,0.26269]
[1764045171515,0.00016952,88289.0,88288.0,0.32262016]
[1764045171716,0.17984,88293.0,88292.0,0.2185399]
[1764045171917,0.17984,88305.0,88304.0,0.26269]
[1764045172114,0.49984,88305.0,88304.0,0.31128966]
[1764045172314,0.49984,88305.0,88304.0,0.34135203]
[1764045172709,0.49984,88305.0,88304.0,0.35137282]
[1764045172910,0.49984,88305.0,88304.0,0.31128966]
[1764045173204,0.23084,88305.0,88304.0,0.31128966]
[1764045173415,0.18084,88305.0,88304.0,0.31128966]
[1764045174813,0.21288,88305.0,88304.0,0.31128966]
[1764045175012,0.002,88305.0,88304.0,0.31128966]
[1764045175316,0.1,88305.0,88304.0,0.31128966]
[1764045175510,0.1,88305.0,88304.0,0.35137507]
[1764045175710,0.1211281,88307.0,88306.0,0.20721]
[1764045175911,0.6122081,88307.0,88306.0,0.25580966]
[1764045176218,0.15,88307.0,88306.0,0.25580966]
[1764045176916,0.162328,88307.0,88306.0,0.25580966]
[1764045177219,0.001,88307.0,88306.0,0.61660966]
[1764045177606,0.17015185,88316.0,88315.0,0.208157]
[1764045177816,0.1,88316.0,88315.0,0.25675666]
[1764045178019,0.0113269,88316.0,88315.0,0.24542966]
[1764045178315,0.4362269,88316.0,88315.0,0.24542966]
[1764045178519,0.5336269,88316.0,88315.0,0.24542966]
[1764045178911,0.5346269,88316.0,88315.0,0.24542966]
[1764045179406,0.4372269,88316.0,88315.0,0.24542966]
[1764045179610,0.321,88316.0,88315.0,0.24542966]
[1764045180124,0.4259,88316.0,88315.0,0.24542966]
[1764045180419,0.001,88316.0,88315.0,0.24542966]
[1764045180612,0.5733,88316.0,88315.0,0.24542966]
[1764045182421,0.5723,88316.0,88315.0,0.24542966]
[1764045183517,0.2023,88316.0,88315.0,0.24542966]
[1764045183714,0.3423,88316.0,88315.0,0.24542966]
[1764045185018,0.4555304,88316.0,88315.0,8e-08]
[1764045185216,0.4555304,88316.0,88296.0,0.00016988]
[1764045185217,0.2136293,88297.0,88296.0,0.00016988]
[1764045185422,0.8233493,88297.0,88296.0,0.00016988]
[1764045186020,1.5449493,88297.0,88296.0,0.00016988]
[1764045187324,0.81202,88297.0,88296.0,0.19919791]
[1764045187627,0.31462,88297.0,88296.0,0.19919791]
[1764045187816,0.2136281,88307.0,88306.0,0.19683]
[1764045188017,0.6433481,88307.0,88306.0,0.19902803]
[1764045189524,0.6443481,88307.0,88306.0,0.19902803]
[1764045190030,0.63302,88307.0,88306.0,0.19902803]
[1764045191120,0.63302,88307.0,88306.0,0.00219803]
[1764045195825,0.2189288,88301.0,88300.0,0.00999999]
[1764045196025,0.2189293,88297.0,88296.0,0.00016988]
[1764045196329,0.7885693,88297.0,88296.0,0.00016988]
[1764045198327,0.7885693,88297.0,88296.0,0.00236791]
[1764045198933,0.7885693,88297.0,88296.0,0.00016988]
[1764045199135,0.7885693,88297.0,88296.0,0.10011988]
[1764045199337,0.7885693,88297.0,88296.0,0.00016988]
[1764045200133,0.7885693,88297.0,88296.0,0.03282194]
[1764045201026,0.7885693,88297.0,88296.0,0.00016988]
[1764045201731,0.7885693,88297.0,88290.0,0.00999999]
[1764045201732,0.18806,88281.0,88280.0,0.19718]
[1764045201925,0.60806,88281.0,88280.0,0.23203734]
[1764045202525,0.42,88281.0,88280.0,0.23203734]
[1764045203533,0.51396,88281.0,88280.0,0.23203734]
[1764045203728,0.60806,88281.0,88280.0,0.23203734]
[1764045205727,0.60806,88281.0,88280.0,0.03485734]
[1764045206124,0.60806,88281.0,88280.0,0.13480734]
[1764045206325,0.60806,88281.0,88280.0,0.23203734]
[1764045207929,0.42,88281.0,88280.0,0.23203734]